Cogmind - Beta 15 @@@ ROGUE MODE // 2025.09.01 @ 11:21:15 Player: C0-2MO Result: Destroyed by P-60 Hacker with Shock Rifle Performance ------------- Evolutions (0) 0 Regions Visited (3) 600 Robots Destroyed (42) 210 Value Destroyed (957) 957 Prototype IDs (12) 240 Alien Tech Used (0) 0 Bonus (0) 0 TOTAL SCORE: 2007 Bonus ------- None Cogmind --------- Core Integrity 0/250 Matter 300/300 Energy 23/100 System Corruption 2% Temperature Hot (216) Movement Rolling (117) Ox1 Location -7/Recycling Parts ------- > --- POWER (1) -------- (None) > --- PROPULSION (2) --- Compact Wheel Subdweller Monowheel > --- UTILITY (2) ------ High-capacity Storage Unit > --- WEAPON (2) ------- Subdweller Beam Cannon > --- INVENTORY (20) --- Light Ion Engine Light Treads Flight Unit Flight Unit Xenon Bombardment Thruster Flightbrick Subdweller Optics Seismic Detector ECM Suite Scrap Shield Remote Datajack Multitool Makeshift Hammer Peak State ------------ > --- POWER ------------ Subdweller Power Source > --- PROPULSION ------- Light Treads Wheel > --- UTILITY ---------- High-capacity Storage Unit Hardened Light Armor Plating > --- WEAPON ----------- Subdweller Beam Cannon Makeshift Hammer > --- INVENTORY -------- Light Ion Engine Compact Wheel Subdweller Monowheel Flight Unit Flight Unit Flightbrick Subdweller Optics Seismic Detector Hardened Light Armor Plating Hardened Light Armor Plating Scrap Shield Autogun Autogun Subdweller Machine Gun Battle Cannon Multitool [Rating: 19] Favorites ----------- Power Ion Engine Engine Ion Engine Propulsion Light Treads Treads Light Treads Wheel Wheel Utility High-capacity Storage Unit Device Seismic Detector Storage High-capacity Storage Unit Protection Hardened Light Armor Plating Weapon Autogun Energy Gun Subdweller Laser Energy Cannon Subdweller Beam Cannon Ballistic Gun Autogun Ballistic Cannon Battle Cannon Special Weapon Mining Laser Impact Weapon Makeshift Hammer Build | -11 -10 -10 -7 ------- Run | Yrd Mat Sub Rec Slots Evolved . | . . . . Power . | . . . . Propulsion . | . . . . Utility . | . . . . Weapon . | . . . . Parts Attached 32 | 7 5 17 3 Power 3 | 1 . 2 . Engine 3 | 1 . 2 . Core . | . . . . Reactor . | . . . . Propulsion 9 | 2 . 5 2 Treads 2 | 1 . 1 . Leg . | . . . . Wheel 7 | 1 . 4 2 Hover . | . . . . Flight . | . . . . Utility 7 | 2 2 2 1 Device 1 | 1 . . . Storage 2 | 1 1 . . Processor . | . . . . Hackware . | . . . . Protection 4 | . 1 2 1 Artifact . | . . . . Weapon 13 | 2 3 8 . Energy Gun 2 | . 1 1 . Energy Cannon 1 | . . 1 . Ballistic Gun 7 | 2 2 3 . Ballistic Cannon 1 | . . 1 . Launcher . | . . . . Special Weapon 1 | . . 1 . Impact Weapon 1 | . . 1 . Slashing Weapon . | . . . . Piercing Weapon . | . . . . Special Melee Weapon . | . . . . Unidentified Prototypes 1 | . 1 . . Parts Lost 11 | . . 6 5 Power 2 | . . 1 1 Propulsion 4 | . . 3 1 Utility 2 | . . 1 1 Weapon 3 | . . 1 2 Highest Loss Streak 5 | . . 2 5 To Critical Strikes . | . . . . Average Backups 14 | 2 9 16 14 Power . | . 1 1 1 Propulsion 5 | 1 3 5 5 Utility 3 | . 2 4 3 Weapon 3 | . 2 4 2 Tool/Special . | . . . . Unused Backups 11 | . . . 11 Power 1 | . . . 1 Propulsion 4 | . . . 4 Utility 3 | . . . 3 Weapon 1 | . . . 1 Tool/Special 2 | . . . 2 Average Slot Usage (%) 99 | . 99 99 99 Engine 13 | . 14 13 13 Treads 13 | . 14 14 13 Wheel 13 | . 14 13 14 Device 1 | . 8 . . Storage 14 | . 14 14 14 Protection 12 | . 5 13 14 Energy Cannon 6 | . . 8 5 Ballistic Gun 11 | . 27 9 . Ballistic Cannon 6 | . . 6 13 Special Weapon 1 | . . 1 . Impact Weapon 2 | . . 1 8 Peak Build Rating 19 | 7 12 19 19 Average Rating 14 | 5 9 15 18 On Entrance 9 | . 7 12 17 Naked Turns . | . . . . Heaviest Build 62 | 15 56 61 62 Greatest Support 36 | 10 20 16 36 Greatest Overweight (x) 6 | 1 5 6 6 Average Overweight (x) 4 | . 3 5 5 Largest Inventory Capacity 20 | 8 20 20 20 Average Capacity 18 | 6 16 20 20 Most Carried 20 | 3 15 20 20 Average Carried 17 | 2 10 19 18 Final Capacity 20 | 8 20 20 20 Final Carried 19 | 3 15 19 17 Class Distribution -------------------- 100% | Mutant Dominant Class ---------------- Mutant | -10/Materials Mutant | -10/Subcaves Mutant | -7/Recycling Resources | -11 -10 -10 -7 ----------- Run | Yrd Mat Sub Rec Matter Collected 1232 | 312 289 562 69 Remotely . | . . . . Salvage Created 1186 | 130 289 605 162 Parts 85 | 5 28 45 7 Haulers Intercepted . | . . . . Recyclers Shooed . | . . . . Parts Field Recycled . | . . . . Retrieved Matter . | . . . . Parts Self-Destructed 28 | . . 28 . Prevented . | . . . . Kills | -11 -10 -10 -7 ------- Run | Yrd Mat Sub Rec Combat Hostiles Destroyed 32 | . 11 19 2 Guns 21 | . 11 10 . Cannons 11 | . . 9 2 Classes Destroyed 9 | 2 4 2 1 Tunneler 3 | 3 . . . Recycler 2 | 1 . . 1 Operator 1 | . 1 . . Turret 2 | . . 2 . Watcher 2 | . 2 . . Swarmer 16 | . 9 7 . Grunt 5 | . 2 2 1 Programmer 1 | . . . 1 Subdweller 10 | . . 10 . Best Kill Streak 6 | 4 6 5 2 Combat Bots Only 6 | . 6 4 2 Max Kills in Single Turn 2 | 1 2 1 1 Gunslinging 1 | . 1 . . Exploded . | . . . . Melee . | . . . . Uniques/NPCs Destroyed . | . . . . Combat | -11 -10 -10 -7 -------- Run | Yrd Mat Sub Rec Hostile Shots Fired 277 | . 36 115 126 Missed 80 | . 6 39 35 Hits 197 | . 30 76 91 Projectile 197 | . 30 76 91 AOE 3 | . . 3 . Critical Strikes 6 | . . 3 3 Damage Taken 2054 | . 272 970 812 Core 260 | . 39 73 148 Absorbed by Shields . | . . . . Core Remaining (%) 100 | 100 . . . Volleys Fired 116 | 7 34 68 7 Largest 2 | 2 2 2 2 Hottest 113 | 40 46 113 113 Shots Fired 211 | 14 68 117 12 Gun 143 | 14 68 59 2 Cannon 54 | . . 44 10 Launcher . | . . . . Special 14 | . . 14 . Kinetic 162 | 14 68 73 7 Thermal 49 | . . 44 5 Explosive . | . . . . Electromagnetic . | . . . . Robot Hit Streak 18 | 5 5 18 6 Robot Miss Streak 3 | 3 3 3 2 Penetration Max . | . . . . Secondary Targets 2 | . 2 . . Max Gunslinging Chain 1 | . 1 . . Shots Hit Robots 121 | 7 36 70 8 Core Hits 58 | 5 16 34 3 Critical Kills . | . . . . Critical Parts Destroyed 1 | . 1 . . Critical Strikes 1 | . 1 . . Destroy 1 | . 1 . . Melee Attacks 8 | . . 7 1 Impact 8 | . . 7 1 Slashing . | . . . . Piercing . | . . . . Sneak Attacks . | . . . . Combat Hostiles . | . . . . Follow-up Attacks . | . . . . Damage Inflicted 2199 | 93 578 1279 249 Guns 1387 | 93 578 671 45 Cannons 812 | . . 608 204 Explosions . | . . . . Melee . | . . . . Ramming . | . . . . Kinetic 1730 | 93 578 919 140 Thermal 469 | . . 360 109 Explosive . | . . . . Electromagnetic . | . . . . Impact . | . . . . Slashing . | . . . . Piercing . | . . . . Highest Corruption 2 | . . . 2 Average Corruption 1 | . . . 1 Corruption Purged . | . . . . Corruption Blocked . | . . . . Overload Shots . | . . . . Overflow Damage . | . . . . Projectiles . | . . . . Explosions . | . . . . Melee . | . . . . Knockbacks 4 | . . 4 . Impact . | . . . . Kinetic 4 | . . 4 . Secondary . | . . . . Self-Inflicted Damage . | . . . . Shots . | . . . . Rammed . | . . . . Targets Rammed . | . . . . Kicked . | . . . . Crushed . | . . . . Highest Temperature 370 | . 93 60 370 Average Temperature 71 | . 25 16 235 Received Heat Transfer 474 | . 60 180 234 Effects 1 | . . . 1 Short Circuit 1 | . . . 1 Siege Activations . | . . . . Martial Activations . | . . . . Shielding Activations . | . . . . Robots Disrupted . | . . . . Combat Hostiles . | . . . . Robots Corrupted . | . . . . Combat Hostiles . | . . . . Parts Fried . | . . . . Impact Corruptions . | . . . . Robots Melted . | . . . . Combat Hostiles . | . . . . Parts Melted . | . . . . Heat Transferred 630 | . . 482 148 Parts Sabotaged . | . . . . Parts Stolen . | . . . . Parts Stripped . | . . . . Power Chain Reactions . | . . . . Alert | -11 -10 -10 -7 ------- Run | Yrd Mat Sub Rec Maximum Alert Level . | . . . . Low Security (%) 100 | 100 100 . 100 Level 1 . | . . . . Level 2 . | . . . . Level 3 . | . . . . Level 4 . | . . . . Level 5 . | . . . . High Security . | . . . . Max Security . | . . . . Peak Influence 154 | 5 154 . 83 Initial 83 | . . . 83 Average 69 | 1 105 . 27 Influence Increases 726 | 20 340 300 66 Destroy 0b10 Robot/C 480 | . 220 220 40 Destroy 0b10 Robot/NC 40 | 20 15 . 5 Destroy Leader 64 | . 44 20 . Successful Hack 34 | . 15 . 19 Select Force Hacks 30 | . 30 . . Destroy Structure 3 | . 1 . 2 Partial Spotted 15 | . 15 . . Lose Combat Pursuer 60 | . . 60 . Influence Decreases 726 | 20 236 230 240 Entered New Map 142 | . . 51 91 Time Decay 533 | 20 236 159 118 Lost Part 51 | . . 20 31 Squads Dispatched 3 | . 3 . . Investigation 1 | . 1 . . Extermination . | . . . . Reinforcement 2 | . 2 . . Assault . | . . . . Garrison . | . . . . Intercept . | . . . . Searches Triggered . | . . . . Construction Impeded . | . . . . Haulers Reinforced . | . . . . Active Scanning Responses . | . . . . Cargo Convoy Interrupts . | . . . . Stealth | -11 -10 -10 -7 --------- Run | Yrd Mat Sub Rec Distress Signals . | . . . . Communications Jammed . | . . . . Distress Signals . | . . . . Times Spotted 50 | . 18 25 7 Peak Tracking Total 7 | . 4 5 7 Tactical Retreats 3 | . . 3 . Traps | -11 -10 -10 -7 ------- Run | Yrd Mat Sub Rec Traps Triggered . | . . . . Indirectly . | . . . . Trap Hack Attempts . | . . . . Triggered . | . . . . Disarmed . | . . . . Reprogrammed . | . . . . Reused . | . . . . Traps Extracted . | . . . . Installed . | . . . . Triggered . | . . . . Machines | -11 -10 -10 -7 ---------- Run | Yrd Mat Sub Rec Machines Disabled 2 | . 1 1 . Max in Single Turn 1 | . 1 1 . Machines Repaired . | . . . . Machines Dismantled . | . . . . Machines Sabotaged . | . . . . Overloaded Fab Kills . | . . . . Hacking | -11 -10 -10 -7 --------- Run | Yrd Mat Sub Rec Machines Accessed 8 | . 2 3 3 Terminals 4 | . 1 . 3 Fabricators . | . . . . Repair Stations . | . . . . Recycling Units 1 | . 1 . . Scanalyzers . | . . . . Garrison Access . | . . . . Total Hacks 25 | . 5 11 9 Successful 18 | . 4 11 3 Failed 7 | . 1 . 6 Catastrophic . | . . . . Database Lockouts . | . . . . Manual 13 | . 5 . 8 Terminals 13 | . 4 . 9 Fabricators . | . . . . Repair Stations . | . . . . Recycling Units 1 | . 1 . . Scanalyzers . | . . . . Garrison Access . | . . . . Terminal Hacks 11 | . . 11 . Record 9 | . . 9 . Open Door 1 | . . 1 . Proto ID Catalog 1 | . . 1 . Fabricator Hacks . | . . . . Repair Station Hacks . | . . . . Recycling Unit Hacks . | . . . . Scanalyzer . | . . . . Garrison Access Hacks . | . . . . Unauthorized Hacks 7 | . 4 . 3 Terminals 6 | . 3 . 3 Assimilate 1 | . 1 . . Botnet 2 | . 1 . 1 Skim 3 | . 1 . 2 Fabricators . | . . . . Repair Stations . | . . . . Recycling Units 1 | . 1 . . Tunnel 1 | . 1 . . Scanalyzers . | . . . . Garrison Access . | . . . . Data Cores Recovered . | . . . . Used . | . . . . Hacking Detections 4 | . 1 . 3 Full Trace Events 1 | . . . 1 Feedback Events . | . . . . Feedback Blocked . | . . . . Robot Schematics Acquired . | . . . . Robots Built . | . . . . Authchips . | . . . . Time . | . . . . Total Robot Build Rating . | . . . . Part Schematics Acquired . | . . . . Parts Built . | . . . . Authchips . | . . . . Time . | . . . . Total Part Build Rating . | . . . . Parts Repaired . | . . . . Time . | . . . . Parts Recycled . | . . . . Recycled Matter . | . . . . Retrieved Matter . | . . . . Retrieved Components . | . . . . Parts Scanalyzed . | . . . . Part Schematics Acquired . | . . . . Parts Damaged . | . . . . Bothacking | -11 -10 -10 -7 ------------ Run | Yrd Mat Sub Rec Used RIF Installer . | . . . . Robots Hacked . | . . . . Non-combat . | . . . . Combat . | . . . . Robot Hacks Applied . | . . . . Relay Couplers Released . | . . . . Fabnet Peak Effective % . | . . . . Robots Rewired . | . . . . Allies Hacked . | . . . . Hacks Repelled . | . . . . Allies | -11 -10 -10 -7 -------- Run | Yrd Mat Sub Rec Total Allies . | . . . . Largest Group . | . . . . Highest-Rated Group . | . . . . Highest-Rated Ally . | . . . . Total Orders . | . . . . Ally Attacks . | . . . . Total Damage . | . . . . Kills . | . . . . Allies Corrupted . | . . . . Allies Melted . | . . . . Intel | -11 -10 -10 -7 ------- Run | Yrd Mat Sub Rec Active Infowar (turns) 387 | 10 308 69 . Seismic 387 | 10 308 69 . Robot Analysis Total . | . . . . Derelict Logs Recovered 2 | . . 2 . Drone Launches . | . . . . Drone Recoveries . | . . . . Exploration | -11 -10 -10 -7 ------------- Run | Yrd Mat Sub Rec Turns Passed 2994 | 84 536 2055 319 Spaces Moved 1612 | 57 315 1066 174 Core 2 | 2 . . . Treads 1 | . 1 . . Legs . | . . . . Wheels 1609 | 55 314 1066 174 Hover . | . . . . Flight . | . . . . Fastest Speed 50 | 50 95 145 117 Average Speed 152 | 87 128 161 158 Slowest Speed 170 | 95 160 170 170 Overloaded Moves . | . . . . Propulsion Burnouts . | . . . . Robots Hopped . | . . . . Potential Cave-ins . | . . . . Cave-ins Triggered . | . . . . Exploration Rate (%) 38 | 4 38 71 39 Regions Visited 3 Branch Regions 2 Pre-discovered Areas 2 | . 1 1 . Known Exits Taken . | . . . . Unknown Exits Taken 3 | 1 1 1 . Scrap Searched 2 | . . 2 . Spaces Dug 1 | . . . 1 Terrain Destroyed 8 | . . 7 1 Melee 1 | . . . 1 Projectile 7 | . . 7 . AOE . | . . . . Terrain Rammed . | . . . . Walls Destroyed . | . . . . Machines Disabled . | . . . . Actions | -11 -10 -10 -7 --------- Run | Yrd Mat Sub Rec Total 1911 | 73 386 1248 204 Wait 88 | . 19 59 10 Move 1609 | 56 314 1065 174 Hop . | . . . . Pick Up 24 | 3 10 8 3 Fast Attach 13 | 7 2 4 . Attach 9 | . . 6 3 Detach 2 | . . 2 . Swap 26 | . 4 19 3 Drop 16 | . 3 10 3 Fire 116 | 7 34 68 7 Melee 8 | . . 7 1 Ram . | . . . . Kick . | . . . . Crush . | . . . . Escape Stasis . | . . . . Rewire . | . . . . Trap . | . . . . Miscellaneous . | . . . . Route ------- -11/Scrapyard -10/Materials (discovered 2 exits: [*Min] / *Sub) -10/Subcaves (discovered 3 exits: [*Mat x2] / *Rec) -7/Recycling History --------- Turn | Location | Event 11 | -11/Scrapyard | Discovered new exit (range 16) 85 | -11/Scrapyard | Entered Materials 128 | -10/Materials | Discovered new exit (range 16) 331 | -10/Materials | Build established: Mutant 545 | -10/Materials | Discovered new exit (range 6) 621 | -10/Materials | Entered Subcaves 640 | -10/Subcaves | Learned Materials interactive machine intel 696 | -10/Subcaves | Visited 4L-MR0's lab 720 | -10/Subcaves | Found Flightbrick 1118 | -10/Subcaves | Discovered new exit (range 5) 1484 | -10/Subcaves | Shifting Twisted Machinery released Sub. Power Source 1485 | -10/Subcaves | Shifting Twisted Machinery released Sub. Beam Cannon 1739 | -10/Subcaves | Learned location of Zion (-7) 1768 | -10/Subcaves | Discovered new exit (range 11) 1770 | -10/Subcaves | Shifting Twisted Machinery released Scrap Shield 1780 | -10/Subcaves | Shifting Twisted Machinery released Mak. Hammer 1830 | -10/Subcaves | Shifting Twisted Machinery released Sub. Monowheel 1862 | -10/Subcaves | Shifting Twisted Machinery released Sub. Power Source 2594 | -10/Subcaves | Discovered new exit (range 15) 2676 | -10/Subcaves | Entered Recycling 2968 | -7/Recycling | Core integrity fell below 50% 2982 | -7/Recycling | Core integrity fell below 20% 2995 | -7/Recycling | Destroyed by P-60 Hacker with Shock Rifle Last Messages --------------- 02971_ Destroyed Imp. Deuterium Engine. 02974_ Destroyed Lgt. Nuclear Core. 02974_ G-47 Trooper destroyed. 02975_ Battle Cannon destroyed. 02975_ Wheel destroyed. 02975_ Critical hit (Burn: +37). 02976_ U-05 Engineer builds a Wall. 02978_ Slug penetrates Wall. 02983_ R-06 Scavenger collects Gravmag System. 02984_ Sub. Machine Gun broken. 02984_ Overheating: Short circuit. 02985_ Acquired 39 matter. 02986_ R-06 Scavenger collects Shock Rifle. 02989_ R-06 Scavenger collects Aluminum Leg. 02989_ Broken Sub. Power Source destroyed. 02989_ R-06 Scavenger collects Imp. Heat Sink. 02990_ Slug penetrates Wall. 02992_ Hrd. Light Armor Plating destroyed. 02992_ R-06 Scavenger collects Target Analyzer. 02994_ Broken Sub. Machine Gun destroyed. Map ----- +----------------------------------------------------+ | ###### #??# #????????????????????????????????????? | | #### #????????????????????????????????????? | | #????????????????????????????????????? | | ##???????????????????????????????????? | | ????????????????????????????? | | ##### #########????????????????????????????? | | #???# #????????????????????????????????????? | | =#???# #?????????#####??????????????????????? | | #####%#???# #?????????# #??????????????????????? | | #???#%#???# #####?###?# #??????????????????????? | | #???#!#???? # ?# #??????????????????????? | | #???# #???? # # #??????????????????????? | | #####+##### # # %#??????????????????????? | | # # #! !]?; r /??????????????????????? | | # # # ] ! %#%r #??????????????????????? | | # # # = #rgp#??????????????????????? | | # # # ! ! h #??????????????????????? | | # #?# #Y ###????????????????????? | | # # ########??# r %%#????????????????????? | | # # #?????????# % #????????????????????? | | # # #?????????# %#????????????????????? | | ########+## #???????### ###????????????????????? | | #??????# #???????#!! #??????????????????????? | | ######## #???????#!! #??????????????????????? | | # #???????#!! #??????????????????????? | | # #???????### @#??????????????????????? | | # #??#####?##u #??????????????????????? | | # ####"T"#### #??????????????????????? | | ! + # # #??????????????????????? | | # # # #??????????????????????? | | ] # # #u #??????????????????????? | | =!! # # # #??????????????????????? | | # # """ """ # ##?????????????????????? | | #####+## # """ """ + Y#?????????????????????? | | ????# # """ """ # ##?????????????????????? | | ##### # # #??????????????????????? | | # ########### ##########?????????????? | | %% + #?????????????? | | #+##+##+#####+######+###+##### #?????????????? | | # #?# #????????????????? | | ! # #?# #????????????????? | | # """ """ ### #????????????????? | | # """ """ #"" """" """" #????????????????? | | # """ """ #"" """" """" #????????????????? | | # """ """ #"T """" """" #????????????????? | | * # #"" """" """" #????????????????? | | # #"" #????????????????? | | ################# #????????????????? | | ????????????????# #????????????????? | | ????????????????####""T""########????????????????? | +----------------------------------------------------+ Best States ------------- Heat Dissipation 25 Energy Generation 15 Energy Capacity 250 Matter Stores 300 Matter Capacity 300 Sight Range 16 Terrain Scan Density 10 Armor Coverage 150 Evasion (%) 44 Recoil Reduction 1 Item Schematics ----------------- None Robot Schematics ------------------ None Fabricated ------------ Nothing Repaired ---------- Nothing Alien Tech Used ----------------- None Achievements -------------- None Challenges ------------ None Game ------ Seed RelayLinkedDesublimator Manual? 0 Play Time 00:25:20 Cumulative 501.7 hours Start 2025.09.01 @ 10:56:16 End 2025.09.01 @ 11:21:15 Sessions 1 Manual Loads 0 Difficulty Rogue Special Mode None Game No. 216 Rogue 216 Adventurer 0 Explorer 0 Win Type - Total 34 Types 14/2/6/2/5/1/0/2/0/2 Lore% 95 Gallery% 87 Achievement% 80 Wizard Run 0 Options --------- Layout 1 ASCII 0 Keyboard 0 Movement Numpad Keybinds 0 Fullscreen 1 Font 24/Smallcaps Map View 50x35 Zoom Use 0% Tactical HUD 1 Map Filters NONE Filters NONE Steam 1 RUN: 0294da1b-4f2d-4353-b272-40553aac043c